{"text_format":"1","workbook":"xlsx","n_sheets":1,"sheets":["配置数ツール"],"not_rendered":{"charts":0,"images":3,"macros":1,"external_links":0,"defined_names":1,"comments":0,"pivot_tables":0},"unopened":[],"bounds":{"document_bytes":16777216,"sheet_cells":100000,"rows_first":2000,"rows_last":500,"rows_between":2000,"halvings":0,"cell_chars":16384,"cell_head_chars":4096},"cells_cut":0,"cells_raw":0,"read":"whole","date_system":"1900"}

{"sheet":"配置数ツール","index":0,"n_rows":51,"n_cols":25,"rows_kept":51,"cut":false,"hidden":false,"merged":[[38,1,47,9],[50,1,53,15],[34,1,36,9],[3,8,4,11],[8,1,8,2],[12,7,12,8],[12,3,12,5],[13,3,13,5],[14,3,17,5],[19,3,22,5],[14,2,17,2],[19,2,22,2],[12,2,13,2],[8,3,8,8]]}
[]
[null,null,null,null,null,null,null,null,null,null,null,null,null,null,null,{"$f":"\"バージョン情報 ： \"&LEFT($U$4,9)&\" / \"&TEXT($X$4,\"yyyy.m\")","v":"バージョン情報 ： ver.25-03 / 2025.3"},null,null,null,"計算他データ　非表示としてシート・ブックを保護して見せない触らせない"]
[]
[null,null,null,null,null,null,null,null,"配置数ツール",null,null,null,null,null,null,null,null,null,null,"バージョン","ver.25-03.1.0.0.1",null,"更新日","2025-03-31"]
[]
[]
[null,null,null,null,null,null,null,null,null,null,"ブレスターH.Gtype-制振-は岡部株式会社の木造軸組工法用の製品です。",null,null,null,null,null,null,null,null,"BHG配置数ツール検討からの係数（2025_03_00_BHG配置数ツール検討_25年基準法対応）"]
[null,null,null,null,null,null,null,null,null,null,"製品・本ツールに関するお問い合わせは岡部株式会社までお願い致します。",null,null,null,null,null,null,null,null,1059.24,"⇒1/50rad時のBHGによるheq4%時の係数"]
[null,"物件名：",null,null,null,null,null,null,null,null,"製品専用WEBサイト URL：https://www.okabe.co.jp/mokuzo/brastarh-g/　"]
[]
[null,null,null,null,null,null,null,null,null,null,null,null,null,null,null,null,null,null,null,null,"↓BHG配置数ツール検討より係数入力"]
[]
[null,null,"No.","階の床面積に乗ずる数値※1",null,null,"Gtype配置数","推奨床面積",null,null,"使用方法",null,null,null,null,null,null,null,null,"床面積","heq4%床面積*係数","配置数","heq4%床面積*係数","床面積","坪"]
[null,null,null,"cm/m2",null,null,"(各階での数)","m2","坪",null,"①No.1またはNo2に階の床面積に乗ずる数値を入力",null,null,null,null,null,null,null,null,"m2","cm",null,"cm","m2",3.3057850000000002]
[null,null,1,null,null,null,2,{"$f":"IFERROR(TEXT(X15,\"0.0\")&\" 以下\",\"-\")","v":"-"},{"$f":"IFERROR(TEXT(Y15,\"0.0\")&\" 以下\",\"-\")","v":"-"},null,"②配置数毎の推奨床面積が表示",null,null,null,null,null,null,null,null,{"$f":"$D$15","v":0},1059.24,1,{"$f":"$U$15*V15","v":1059.24},{"$f":"ROUNDDOWN(W15/$T$15,1)","v":{"$error":"#DIV/0!"}},{"$f":"ROUNDDOWN(X15/$Y$14,1)","v":{"$error":"#DIV/0!"}}]
[null,null,null,null,null,null,4,{"$f":"IFERROR(TEXT(X16,\"0.0\")&\" 以下\",\"-\")","v":"-"},{"$f":"IFERROR(TEXT(Y16,\"0.0\")&\" 以下\",\"-\")","v":"-"},null,"※No.1・No.2ともに同様の計算を行なっています。",null,null,null,null,null,null,null,null,null,null,2,{"$f":"$U$15*V16","v":2118.48},{"$f":"ROUNDDOWN(W16/$T$15,1)","v":{"$error":"#DIV/0!"}},{"$f":"ROUNDDOWN(X16/$Y$14,1)","v":{"$error":"#DIV/0!"}}]
[null,null,null,null,null,null,6,"-","-",null,"　1階・2階の検討や比較検討でご使用ください。",null,null,null,null,null,null,null,null,null,null,3,{"$f":"$U$15*V17","v":3177.7200000000003},{"$f":"ROUNDDOWN(W17/$T$15,1)","v":{"$error":"#DIV/0!"}},{"$f":"ROUNDDOWN(X17/$Y$14,1)","v":{"$error":"#DIV/0!"}}]
[null,null,null,null,null,null,8,"-","-",null,null,null,null,null,null,null,null,null,null,null,null,4,{"$f":"$U$15*V18","v":4236.96},{"$f":"ROUNDDOWN(W18/$T$15,1)","v":{"$error":"#DIV/0!"}},{"$f":"ROUNDDOWN(X18/$Y$14,1)","v":{"$error":"#DIV/0!"}}]
[]
[null,null,2,null,null,null,2,{"$f":"IFERROR(TEXT(X20,\"0.0\")&\" 以下\",\"-\")","v":"-"},{"$f":"IFERROR(TEXT(Y20,\"0.0\")&\" 以下\",\"-\")","v":"-"},null,null,null,null,null,null,null,null,null,null,{"$f":"$D$20","v":0},{"$f":"$U$15","v":1059.24},1,{"$f":"$U$20*V20","v":1059.24},{"$f":"ROUNDDOWN(W20/$T$20,1)","v":{"$error":"#DIV/0!"}},{"$f":"ROUNDDOWN(X20/$Y$14,1)","v":{"$error":"#DIV/0!"}}]
[null,null,null,null,null,null,4,{"$f":"IFERROR(TEXT(X21,\"0.0\")&\" 以下\",\"-\")","v":"-"},{"$f":"IFERROR(TEXT(Y21,\"0.0\")&\" 以下\",\"-\")","v":"-"},null,null,null,null,null,null,null,null,null,null,null,null,2,{"$f":"$U$20*V21","v":2118.48},{"$f":"ROUNDDOWN(W21/$T$20,1)","v":{"$error":"#DIV/0!"}},{"$f":"ROUNDDOWN(X21/$Y$14,1)","v":{"$error":"#DIV/0!"}}]
[null,null,null,null,null,null,6,"-","-",null,null,null,null,null,null,null,null,null,null,null,null,3,{"$f":"$U$20*V22","v":3177.7200000000003},{"$f":"ROUNDDOWN(W22/$T$20,1)","v":{"$error":"#DIV/0!"}},{"$f":"ROUNDDOWN(X22/$Y$14,1)","v":{"$error":"#DIV/0!"}}]
[null,null,null,null,null,null,8,"-","-",null,null,null,null,null,null,null,null,null,null,null,null,4,{"$f":"$U$20*V23","v":4236.96},{"$f":"ROUNDDOWN(W23/$T$20,1)","v":{"$error":"#DIV/0!"}},{"$f":"ROUNDDOWN(X23/$Y$14,1)","v":{"$error":"#DIV/0!"}}]
[]
[]
[]
[null,"本配置数ツールについて"]
[null,"・本ツールはブレスターH.Gtype-制振-（以下，本製品）の配置数を算出するツールです。"]
[null,"・階の床面積に乗ずる数値※1から各配置数における推奨床面積（m2，坪）を算出します。"]
[null,"・各配置数は建物の各階層での配置数です。X・Y方向に2壁ずつ設置する場合は配置数：4となります。"]
[null,"・本製品の制振効果については技術資料をご参照ください。"]
[null,"・本製品による減衰定数の付加が4%（1/50rad.時）として算出しています。"]
[null,"・その他，本製品の耐力や使用方法についてはカタログ・技術資料をご参照ください。"]
[]
[null,"※1 地震力に対する床面積あたりの必要壁量（cm/m2）。公益財団法人 日本住宅・木材技術センターなどで公開の\n　　壁量等の基準（令和7年施行）に対応した表計算ツールや一覧表を用いて算出される数値。"]
[]
[]
[null,"　"]
[null,"ー適用範囲ー\n・梁（桁），土台：断面寸法105mm以上\n・柱：断面寸法105～120mm，基準強度Fb：22.2N/mm2以上\n　　　製材：E50以上\n　　　集成材：同一等級E55-F225以上，対称異等級E65-F225以上\n・柱心間距離（壁幅）Ｂ：450～460mm，600～610mm\n・横架材心間距離（壁高さ）h0：2250～3185mm\n・取付け位置：横架材間内法寸法の中央位置\n\n※本工法は大臣認定壁倍率を取得しておりません。\n　耐力を見込む場合，許容応力度計算などの構造計算が必要になります。（46条2項ルート）"]
[]
[]
[]
[]
[]
[]
[]
[]
[]
[]
[]
[null,"※注意事項\n　本ツールで出力される結果は，計算条件ならびに当社の知見に基づき結果の有効性を示したものであり，実施にあたっては工事・設計関係者の確認・承認を要する内容もございます。\n　なお，検討結果と異なる諸事情ならびに諸条件によって結果が異なる場合がございますことをあらかじめご了承ください。\n　本ツールにはVBAマクロを使用しております。ツール使用時は，マクロを有効にしてご使用ください。 Windows 10 / Microsoft Excel for Office 365 MSO で作成および動作確認を行っております。\n　上記以外の環境につきましては，想定していない動作をする可能性がありますのであらかじめご了承ください。\n　Windows / ExcelはMicrosoft社の商標です。"]